Cogmind - Beta 13 @@@ ROGUE MODE // 2024.04.11 @ 03:51:30 Player: JTMusky Result: Destroyed by G-34 Mercenary with Small Laser Performance ------------- Evolutions (0) 0 Regions Visited (1) 200 Robots Destroyed (13) 65 Value Destroyed (311) 311 Prototype IDs (2) 40 Alien Tech Used (0) 0 Bonus (0) 0 TOTAL SCORE: 616 Bonus ------- None Cogmind --------- Core Integrity 0/250 Matter 267/300 Energy 99/100 System Corruption 3% Temperature Cool (6) Movement Core (50) Location -10/Materials Parts ------- > --- POWER (1) -------- (None) > --- PROPULSION (2) --- (None) > --- UTILITY (2) ------ Sensor Array Utility Shielding > --- WEAPON (2) ------- (None) > --- INVENTORY (5) ---- Cooling System Medium Matter Pod (84) Terrain Scanner Peak State ------------ > --- POWER ------------ Light Ion Engine > --- PROPULSION ------- Improved Treads Improved Treads > --- UTILITY ---------- Heat Sink Cooling System > --- WEAPON ----------- Grenade Launcher > --- INVENTORY -------- Aluminum Leg Aluminum Leg Medium Matter Pod Sensor Array [Rating: 9] Favorites ----------- Power Light Ion Engine Engine Light Ion Engine Propulsion Aluminum Leg Treads Improved Treads Leg Aluminum Leg Wheel Wheel Utility Heat Sink Device Heat Sink Protection Utility Shielding Weapon Assault Rifle Ballistic Gun Assault Rifle Launcher Grenade Launcher Build | -11 -10 ------- Run | Yrd Mat Slots Evolved . | . . Power . | . . Propulsion . | . . Utility . | . . Weapon . | . . Parts Attached 21 | 5 16 Power 5 | 1 4 Engine 5 | 1 4 Core . | . . Reactor . | . . Propulsion 6 | 2 4 Treads 2 | . 2 Leg 2 | . 2 Wheel 2 | 2 . Hover . | . . Flight . | . . Utility 5 | . 5 Device 4 | . 4 Storage . | . . Processor . | . . Hackware . | . . Protection 1 | . 1 Artifact . | . . Weapon 5 | 2 3 Energy Gun . | . . Energy Cannon . | . . Ballistic Gun 3 | 2 1 Ballistic Cannon . | . . Launcher 2 | . 2 Special Weapon . | . . Impact Weapon . | . . Slashing Weapon . | . . Piercing Weapon . | . . Special Melee Weapon . | . . Unidentified Prototypes . | . . Parts Lost 6 | . 6 Power 2 | . 2 Propulsion 2 | . 2 Utility . | . . Weapon 2 | . 2 Highest Loss Streak 3 | . 3 To Critical Strikes . | . . Average Slot Usage (%) 76 | . 76 Engine 12 | . 12 Treads 7 | . 7 Leg 7 | . 7 Wheel 3 | . 3 Device 26 | . 26 Ballistic Gun 9 | . 9 Launcher 7 | . 7 Naked Turns 3 | . 3 Heaviest Build 11 | 7 11 Greatest Support 46 | 20 46 Greatest Overweight (x) 3 | 2 3 Average Overweight (x) . | . . Largest Inventory Capacity 5 | 5 5 Average Capacity 5 | 5 5 Most Carried 5 | 5 5 Average Carried 2 | 2 2 Final Capacity 5 | 5 5 Final Carried 4 | 4 3 Class Distribution -------------------- 100% | Mutant Dominant Class ---------------- Mutant | -10/Materials Resources | -11 -10 ----------- Run | Yrd Mat Matter Collected 567 | 258 309 Remotely . | . . Salvage Created 305 | 35 270 Parts 26 | 4 22 Haulers Intercepted . | . . Recyclers Shooed 1 | . 1 Parts Field Recycled . | . . Retrieved Matter . | . . Parts Self-Destructed . | . . Prevented . | . . Kills | -11 -10 ------- Run | Yrd Mat Combat Hostiles Destroyed 13 | 1 12 Guns 9 | 1 8 AOE 4 | . 4 Classes Destroyed 2 | 1 1 Swarmer 6 | . 6 Grunt 7 | 1 6 Best Kill Streak 4 | 1 4 Combat Bots Only 4 | 1 4 Max Kills in Single Turn 3 | 1 3 Gunslinging . | . . Exploded 3 | . 3 Melee . | . . Uniques/NPCs Destroyed . | . . Combat | -11 -10 -------- Run | Yrd Mat Hostile Shots Fired 121 | 10 111 Missed 37 | 1 36 Damage Taken 818 | 106 712 Core 257 | 35 222 Absorbed by Shields . | . . Core Remaining (%) 86 | 86 . Volleys Fired 29 | 4 25 Largest 2 | 2 2 Hottest 40 | 40 40 Shots Fired 46 | 8 38 Gun 44 | 8 36 Cannon . | . . Launcher 2 | . 2 Special . | . . Kinetic 44 | 8 36 Thermal . | . . Explosive 2 | . 2 Electromagnetic . | . . Robot Hit Streak 9 | 2 9 Robot Miss Streak 5 | 2 5 Penetration Max . | . . Secondary Targets . | . . Shots Hit Robots 27 | 5 22 Core Hits 21 | 1 20 Critical Kills . | . . Critical Parts Destroyed . | . . Critical Strikes . | . . Melee Attacks . | . . Impact . | . . Slashing . | . . Piercing . | . . Sneak Attacks . | . . Combat Hostiles . | . . Follow-up Attacks . | . . Damage Inflicted 667 | 68 599 Guns 347 | 68 279 Cannons . | . . Explosions 317 | . 317 Melee . | . . Ramming 3 | . 3 Kinetic 347 | 68 279 Thermal . | . . Explosive 317 | . 317 Electromagnetic . | . . Impact . | . . Slashing . | . . Piercing . | . . Highest Corruption 3 | . 3 Average Corruption 2 | . 2 Corruption Purged . | . . Corruption Blocked . | . . Effects 2 | . 2 Message Errors 1 | . 1 Matter Fused 1 | . 1 Overload Shots . | . . Overflow Damage . | . . Projectiles . | . . Explosions . | . . Melee . | . . Knockbacks . | . . Impact . | . . Kinetic . | . . Secondary . | . . Self-Inflicted Damage . | . . Shots . | . . Rammed . | . . Targets Rammed 4 | . 4 Kicked 4 | . 4 Crushed . | . . Highest Temperature 6 | 6 . Average Temperature 5 | 5 . Received Heat Transfer 210 | 54 156 Siege Activations . | . . Robots Corrupted . | . . Combat Hostiles . | . . Parts Fried . | . . Impact Corruptions . | . . Robots Melted . | . . Combat Hostiles . | . . Parts Melted . | . . Heat Transferred . | . . Parts Sabotaged . | . . Parts Stolen . | . . Parts Stripped . | . . Power Chain Reactions . | . . Alert | -11 -10 ------- Run | Yrd Mat Peak Influence 275 | 20 275 Initial 13 | . 13 Average 74 | 1 85 Maximum Alert Level 1 | . 1 Low Security (%) 95 | 100 94 Level 1 4 | . 5 Level 2 . | . . Level 3 . | . . Level 4 . | . . Level 5 . | . . High Security . | . . Max Security . | . . Squads Dispatched 2 | . 2 Investigation . | . . Extermination . | . . Reinforcement 2 | . 2 Assault . | . . Garrison . | . . Intercept . | . . Searches Triggered . | . . Construction Impeded . | . . Haulers Reinforced . | . . Active Scanning Responses . | . . Cargo Convoy Interrupts . | . . Stealth | -11 -10 --------- Run | Yrd Mat Distress Signals 2 | . 2 Communications Jammed . | . . Distress Signals . | . . Times Spotted 28 | 1 27 Peak Tracking Total 7 | 1 7 Tactical Retreats 2 | . 2 Traps | -11 -10 ------- Run | Yrd Mat Traps Triggered 5 | . 5 Indirectly . | . . Trap Hack Attempts . | . . Triggered . | . . Disarmed . | . . Reprogrammed . | . . Reused . | . . Traps Extracted . | . . Installed . | . . Triggered . | . . Machines | -11 -10 ---------- Run | Yrd Mat Machines Disabled . | . . Max in Single Turn . | . . Machines Repaired . | . . Machines Dismantled . | . . Machines Sabotaged . | . . Overloaded Fab Kills . | . . Hacking | -11 -10 --------- Run | Yrd Mat Machines Accessed 1 | . 1 Terminals 1 | . 1 Fabricators . | . . Repair Stations . | . . Recycling Units . | . . Scanalyzers . | . . Garrison Access . | . . Total Hacks 1 | . 1 Successful 1 | . 1 Failed . | . . Catastrophic . | . . Database Lockouts . | . . Manual . | . . Terminals 1 | . 1 Fabricators . | . . Repair Stations . | . . Recycling Units . | . . Scanalyzers . | . . Garrison Access . | . . Terminal Hacks 1 | . 1 Prototype ID Bank 1 | . 1 Fabricator Hacks . | . . Repair Station Hacks . | . . Recycling Unit Hacks . | . . Scanalyzer . | . . Garrison Access Hacks . | . . Unauthorized Hacks . | . . Terminals . | . . Fabricators . | . . Repair Stations . | . . Recycling Units . | . . Scanalyzers . | . . Garrison Access . | . . Data Cores Recovered . | . . Used . | . . Hacking Detections . | . . Full Trace Events . | . . Feedback Events . | . . Feedback Blocked . | . . Robot Schematics Acquired . | . . Robots Built . | . . Authchips . | . . Time . | . . Total Robot Build Rating . | . . Part Schematics Acquired . | . . Parts Built . | . . Authchips . | . . Time . | . . Total Part Build Rating . | . . Parts Repaired . | . . Time . | . . Parts Recycled . | . . Recycled Matter . | . . Retrieved Matter . | . . Retrieved Components . | . . Parts Scanalyzed . | . . Part Schematics Acquired . | . . Parts Damaged . | . . Bothacking | -11 -10 ------------ Run | Yrd Mat Used RIF Installer . | . . Robots Hacked . | . . Non-combat . | . . Combat . | . . Robot Hacks Applied . | . . Relay Couplers Released . | . . Fabnet Peak Effective % . | . . Robots Rewired . | . . Allies Hacked . | . . Hacks Repelled . | . . Allies | -11 -10 -------- Run | Yrd Mat Total Allies . | . . Largest Group . | . . Highest-Rated Group . | . . Highest-Rated Ally . | . . Total Orders . | . . Ally Attacks . | . . Total Damage . | . . Kills . | . . Allies Corrupted . | . . Allies Melted . | . . Intel | -11 -10 ------- Run | Yrd Mat Robot Analysis Total . | . . Derelict Logs Recovered . | . . Drone Launches . | . . Drone Recoveries . | . . Exploration | -11 -10 ------------- Run | Yrd Mat Turns Passed 1061 | 141 920 Spaces Moved 827 | 175 652 Core 326 | 97 229 Treads 156 | . 156 Legs 171 | . 171 Wheels 174 | 78 96 Hover . | . . Flight . | . . Fastest Speed 50 | 50 50 Average Speed 106 | 65 117 Slowest Speed 200 | 150 200 Overloaded Moves . | . . Propulsion Burnouts . | . . Robots Hopped . | . . Cave-ins Triggered . | . . Exploration Rate (%) 39 | 7 72 Regions Visited 1 Branch Regions . Pre-discovered Areas . | . . Known Exits Taken . | . . Unknown Exits Taken 1 | 1 . Scrap Searched . | . . Spaces Dug . | . . Terrain Destroyed 10 | . 10 Melee . | . . Projectile . | . . AOE 10 | . 10 Terrain Rammed . | . . Walls Destroyed . | . . Machines Disabled . | . . Actions | -11 -10 --------- Run | Yrd Mat Total 956 | 193 763 Wait 50 | 2 48 Move 826 | 174 652 Hop . | . . Pick Up 18 | 8 10 Fast Attach 9 | 1 8 Attach 8 | 4 4 Detach . | . . Swap 4 | . 4 Drop 8 | . 8 Fire 29 | 4 25 Melee . | . . Ram . | . . Kick 4 | . 4 Crush . | . . Escape Stasis . | . . Rewire . | . . Trap . | . . Miscellaneous . | . . Route ------- -11/Scrapyard -10/Materials (discovered 4 exits: [*Mat x2] / [*Min x2]) History --------- Turn | Location | Event 2 | -11/Scrapyard | Met Revision 17 108 | -11/Scrapyard | Discovered new exit (range 8) 142 | -11/Scrapyard | Entered Materials 307 | -10/Materials | Discovered new exit (range 14) 323 | -10/Materials | Build established: Mutant 471 | -10/Materials | Core integrity fell below 50% 504 | -10/Materials | Lost 3 parts (1p2w) 748 | -10/Materials | Discovered new exit (range 7) 851 | -10/Materials | Discovered new exit (range 8) 931 | -10/Materials | Discovered new exit (range 15) 999 | -10/Materials | Core integrity fell below 20% 1062 | -10/Materials | Destroyed by G-34 Mercenary with Small Laser Last Messages --------------- SECURING TERMINAL." 00968_ OZ5AV LMJWD9 K1PI7XVR3BY